fUST/lending_fUST_20250701
["ID","MTS","AMOUNT","RATE_DAILY","PERIOD"]
[368706545,1751316633486,-266.31118269,0.00020159,2]
[368706548,1751316633499,-500.0,0.00020159,2]
[368706550,1751316633510,-500.0,0.00020159,2]
[368706552,1751316633521,-500.0,0.00020159,2]
[368706554,1751316633531,-500.0,0.00020159,2]
[368706556,1751316633544,-151.0,0.00020159,2]
[368706558,1751316633555,-152.810406,0.0002016,2]
[368706560,1751316633565,-460.0,0.0002016,2]
[368706562,1751316633575,-460.0,0.0002016,2]
[368706564,1751316633586,-151.0,0.0002016,2]
[368706566,1751316633596,-151.0,0.0002016,2]
[368706568,1751316633606,-632.64,0.00020161,2]
[368706570,1751316633617,-460.0,0.00020161,2]
[368706572,1751316633627,-349.23,0.00020272,2]
[368706574,1751316633637,-167.64,0.00020272,2]
[368706576,1751316633647,-151.0,0.00020272,2]
[368706578,1751316633658,-234.95442889,0.00020272,2]
[368706580,1751316633668,-460.0,0.0002029,2]
[368706582,1751316633677,-690.642,0.00020398,2]
[368706584,1751316633688,-207.4,0.00020398,2]
[368706586,1751316633698,-153.808553,0.00020398,2]
[368706588,1751316633709,-460.0,0.00020431,2]
[368706590,1751316633718,-460.0,0.00020431,2]
[368706592,1751316633728,-460.0,0.00020431,2]
[368706594,1751316633739,-460.0,0.00020431,2]
[368706596,1751316633748,-460.0,0.00020431,2]
[368706598,1751316633759,-460.0,0.00020431,2]
[368706600,1751316633769,-460.0,0.00020431,2]
[368706602,1751316633779,-460.0,0.00020432,2]
[368706604,1751316633790,-460.0,0.00020432,2]
[368706606,1751316633800,-460.0,0.00020432,2]
[368706608,1751316633810,-460.0,0.00020433,2]
[368706610,1751316633820,-460.0,0.00020434,2]
[368706611,1751316633830,-460.0,0.00020434,2]
[368706612,1751316633840,-632.64,0.00020435,2]
[368706613,1751316633850,-460.0,0.00020435,2]
[368706615,1751316633860,-151.0,0.00020439,2]
[368706617,1751316633869,-484.415928,0.00020439,2]
[368706618,1751316633879,-484.415928,0.00020439,2]
[368706619,1751316633889,-837.16779106,0.00020445,2]
[368706621,1751316633899,-213.84631524,0.00020445,2]
[368706622,1751316633910,-160.0,0.00020445,2]
[368706623,1751316633920,-160.0,0.00020445,2]
[368706624,1751316633931,-847.41730813,0.00020445,2]
[368706625,1751316633941,-230.31346914,0.00020445,2]
[368706626,1751316633951,-160.0,0.00020445,2]
[368706627,1751316633960,-160.0,0.00020445,2]
[368706628,1751316633971,-160.0,0.00020445,2]
[368706629,1751316633980,-160.0,0.00020445,2]
[368706630,1751316633990,-151.0,0.00020451,2]
[368706631,1751316634000,-151.0,0.00020451,2]
[368706632,1751316634011,-151.0,0.00020451,2]
[368706633,1751316634021,-1168.40404477,0.00020452,2]
[368706634,1751316634035,-7266.94028103,0.00020452,2]
[368706637,1751316638554,-563.05944622,0.000199,2]
[368706638,1751316638565,-563.0594462,0.00020072,2]
[368706639,1751316638574,-563.0594462,0.00020245,2]
[368706640,1751316638584,-563.0594462,0.00020417,3]
[368706641,1751316638594,-4133.78799236,0.00020452,2]
[368706642,1751316638731,-151.0,0.00020452,2]
[368706643,1751316638742,-151.0,0.00020452,2]
[368706644,1751316638751,-151.0,0.00020452,2]
[368706645,1751316638760,-151.0,0.00020452,2]
[368706646,1751316638771,-151.0,0.00020452,2]
[368706647,1751316638780,-151.0,0.00020452,2]
[368706648,1751316638790,-151.0,0.00020452,2]
[368706650,1751316638799,-151.0,0.00020452,2]
[368706652,1751316638808,-168.22422399,0.00020453,2]
[368706654,1751316638818,-627.19226716,0.00020453,2]
[368706656,1751316638828,-500.0,0.00020453,2]
[368706658,1751316638838,-269.57425609,0.00020564,2]
[368706660,1751316638847,-151.0,0.00020564,2]
[368706661,1751316638856,-212.59306117,0.00020571,2]
[368706662,1751316638866,-563.0594462,0.0002059,3]
[368706663,1751316638876,-687.95,0.00020698,10]
[368706664,1751316638886,-778.86,0.00020698,10]
[368706665,1751316638895,-323.08,0.00020702,3]
[368706666,1751316638904,-460.0,0.00020705,2]
[368706667,1751316638914,-460.0,0.00020705,2]
[368706668,1751316638924,-460.0,0.00020705,2]
[368706669,1751316638935,-460.0,0.00020706,2]
[368706670,1751316638946,-460.0,0.00020706,2]
[368706671,1751316638955,-460.0,0.00020706,2]
[368706672,1751316638965,-460.0,0.00020707,2]
[368706673,1751316638974,-460.0,0.00020708,2]
[368706674,1751316638984,-460.0,0.00020708,2]
[368706675,1751316638994,-632.64,0.00020709,2]
[368706676,1751316639003,-202.88,0.00020709,2]
[368706677,1751316639013,-563.0594462,0.00020762,3]
[368706678,1751316639022,-500.0,0.000209,2]
[368706679,1751316639032,-500.0,0.000209,2]
[368706680,1751316639042,-464.15321446,0.000209,2]
[368706681,1751316639051,-214.99848635,0.00020929,2]
[368706682,1751316639060,-160.0,0.00020929,2]
[368706683,1751316639070,-563.0594462,0.00020934,4]
[368706684,1751316639079,-493.49,0.00020935,2]
[368706685,1751316639089,-460.0,0.00020935,2]
[368706686,1751316639098,-460.0,0.00020935,2]
[368706687,1751316639108,-460.0,0.00020935,2]
[368706688,1751316639117,-460.0,0.00020935,2]
[368706689,1751316639127,-460.0,0.00020935,2]
[368706690,1751316639136,-566.08,0.00020935,2]
[368706691,1751316639146,-460.0,0.00020935,2]
[368706692,1751316639155,-500.0,0.00020935,2]
[368706693,1751316639164,-460.0,0.00020935,2]
[368706694,1751316639174,-460.0,0.00020935,2]
[368706695,1751316639183,-460.0,0.00020935,2]
[368706696,1751316639192,-460.0,0.00020935,2]
[368706697,1751316639201,-460.0,0.00020935,2]
[368706698,1751316639211,-460.0,0.00020935,2]
[368706699,1751316639220,-532.37,0.00020935,2]
[368706700,1751316639229,-460.0,0.00020935,2]
[368706701,1751316639238,-460.0,0.00020935,2]
[368706702,1751316639247,-460.0,0.00020935,2]
[368706703,1751316639257,-460.0,0.00020935,2]
[368706704,1751316639266,-606.07191659,0.00020935,2]
[368706705,1751316639276,-460.0,0.00020935,2]
[368706706,1751316639285,-460.0,0.00020935,2]
[368706707,1751316639294,-460.0,0.00020935,2]
[368706708,1751316639304,-460.0,0.00020935,2]
[368706709,1751316639313,-460.0,0.00020935,2]
[368706710,1751316639324,-217.446026,0.00020935,2]
[368706711,1751316639333,-585.86,0.00020935,2]
[368706712,1751316639343,-151.0,0.00020935,2]
[368706713,1751316639352,-151.0,0.00020935,2]
[368706714,1751316639361,-171.8,0.00020979,2]
[368706716,1751316639371,-151.0,0.0002098,2]
[368706718,1751316639380,-460.0,0.0002098,2]
[368706720,1751316639390,-484.415928,0.0002098,2]
[368706722,1751316639399,-151.0,0.0002098,2]
[368706724,1751316639410,-484.415928,0.0002098,2]
[368706726,1751316639420,-460.0,0.0002098,2]
[368706728,1751316639430,-460.0,0.0002098,2]
[368706730,1751316639440,-151.0,0.0002098,2]
[368706732,1751316639451,-460.0,0.00020981,2]
[368706734,1751316639461,-460.0,0.00020982,2]
[368706736,1751316639471,-460.0,0.00020982,2]
[368706738,1751316639480,-151.0,0.00020982,2]
[368706740,1751316639493,-151.0,0.00020982,2]
[368706741,1751316639502,-632.64,0.00020983,2]
[368706742,1751316639511,-563.0594462,0.00021107,4]
[368706744,1751316639522,-151.0,0.000212,4]
[368706746,1751316639532,-228.59,0.00021209,2]
[368706747,1751316639542,-212.59306117,0.00021236,2]
[368706749,1751316639552,-460.0,0.00021254,2]
[368706751,1751316639561,-460.0,0.00021254,2]
[368706753,1751316639571,-460.0,0.00021254,2]
[368706755,1751316639581,-460.0,0.00021255,2]
[368706757,1751316639590,-632.64,0.00021256,2]
[368706759,1751316639599,-350.25,0.00021256,2]
[368706761,1751316639609,-460.0,0.00021256,2]
[368706763,1751316639619,-563.0594462,0.00021279,5]
[368706765,1751316639628,-151.0,0.00021287,2]
[368706767,1751316639639,-151.0,0.00021287,2]
[368706769,1751316639648,-151.0,0.000214,4]
[368706771,1751316639658,-1001.263524,0.000214,2]
[368706773,1751316639668,-563.0594462,0.00021452,5]
[368706775,1751316639678,-710.115995,0.00021461,4]
[368706777,1751316639687,-151.0,0.00021483,2]
[368706779,1751316639696,-151.0,0.00021483,2]
[368706780,1751316639706,-151.0,0.000215,4]
[368706782,1751316639715,-460.0,0.00021528,2]
[368706784,1751316639726,-460.0,0.00021528,2]
[368706785,1751316639735,-460.0,0.00021528,2]
[368706786,1751316639746,-460.0,0.00021529,2]
[368706787,1751316639756,-632.64,0.0002153,2]
[368706788,1751316639766,-508.4,0.0002153,2]
[368706789,1751316639776,-800.0,0.00021585,2]
[368706790,1751316639786,-563.0594462,0.00021624,5]
[368706791,1751316639795,-800.0,0.00021629,2]
[368706792,1751316639805,-619.94062802,0.00021645,2]
[368706794,1751316639814,-151.0,0.00021647,2]
[368706795,1751316639825,-248.499906,0.00021647,2]
[368706797,1751316639835,-420.0,0.00021656,2]
[368706799,1751316639844,-500.0,0.00021673,2]
[368706800,1751316639853,-500.0,0.00021673,2]
[368706801,1751316639863,-500.0,0.00021673,2]
[368706803,1751316639872,-500.0,0.00021673,2]
[368706804,1751316639882,-311.95562575,0.00021673,2]
[368706806,1751316639891,-500.0,0.00021673,2]
[368706808,1751316639902,-500.0,0.00021673,2]
[368706810,1751316639911,-500.0,0.00021673,2]
[368706812,1751316639921,-649.05,0.00021689,10]
[368706813,1751316639930,-500.0,0.00021698,2]
[368706815,1751316639939,-529.29971896,0.00021698,2]
[368706816,1751316639949,-500.0,0.00021698,2]
[368706817,1751316639958,-500.0,0.00021698,2]
[368706818,1751316639968,-500.0,0.00021698,2]
[368706819,1751316639977,-500.0,0.00021698,2]
[368706820,1751316639987,-236.41782788,0.00021698,2]
[368706821,1751316639996,-500.0,0.00021698,2]
[368706823,1751316640006,-500.0,0.00021698,2]
[368706825,1751316640015,-500.0,0.00021698,2]
[368706827,1751316640026,-500.0,0.00021698,2]
[368706828,1751316640036,-500.0,0.00021698,2]
[368706829,1751316640045,-500.0,0.00021698,2]
[368706830,1751316640055,-500.0,0.00021698,2]
[368706831,1751316640064,-19528.51191897,0.00021699,2]
[368706832,1751316640073,-151.0,0.00021699,2]
[368706833,1751316640083,-151.0,0.00021699,2]
[368706834,1751316640092,-151.0,0.00021699,2]
[368706835,1751316640102,-151.0,0.00021699,2]
[368706836,1751316640112,-151.0,0.00021699,2]
[368706837,1751316640122,-151.0,0.00021699,2]
[368706838,1751316640131,-151.0,0.00021699,2]
[368706839,1751316640141,-170.12416,0.00021699,2]
[368706840,1751316640151,-484.415928,0.00021699,2]
[368706841,1751316640160,-484.415928,0.00021699,2]
[368706842,1751316640170,-151.0,0.00021699,2]
[368706843,1751316640179,-285.391048,0.00021699,2]
[368706844,1751316640188,-484.415928,0.00021699,2]
[368706845,1751316640198,-484.415928,0.00021699,2]
[368706846,1751316640207,-151.0,0.00021699,2]
[368706847,1751316640216,-151.0,0.00021699,2]
[368706848,1751316640226,-151.0,0.00021699,2]
[368706849,1751316640236,-151.0,0.00021699,2]
[368706850,1751316640245,-275.837064,0.00021699,2]
[368706851,1751316640255,-370000.0,0.00021699,2]
[368706852,1751316640265,-151.0,0.000217,4]
[368706853,1751316640274,-151.34866798,0.00021755,2]
[368706854,1751316640283,-168.0,0.00021755,2]
[368706855,1751316640292,-215.0738,0.00021767,2]
[368706856,1751316640301,-563.0594462,0.00021797,6]
[368706857,1751316640310,-372.50764745,0.00021799,2]
[368706858,1751316640320,-151.0,0.00021799,2]
[368706859,1751316640329,-151.0,0.00021799,2]
[368706860,1751316640338,-151.0,0.000218,3]
[368706861,1751316640347,-979.48,0.000218,2]
[368706862,1751316640356,-151.0,0.000218,4]
[368706863,1751316640366,-268.17,0.00021802,2]
[368706864,1751316640375,-460.0,0.00021802,2]
[368706865,1751316640384,-460.0,0.00021802,2]
[368706866,1751316640394,-162.95,0.00021803,2]
[368706867,1751316640403,-632.64,0.00021804,2]
[368706868,1751316640413,-318.0,0.00021863,2]
[368706869,1751316640425,-318.0,0.00021863,2]
[368706870,1751316640435,-318.0,0.00021863,2]
[368706871,1751316640444,-318.0,0.00021863,2]
[368706872,1751316640454,-318.0,0.00021863,2]
[368706873,1751316640464,-318.0,0.00021863,2]
[368706874,1751316640474,-318.0,0.00021863,2]
[368706875,1751316640483,-318.0,0.00021863,2]
[368706876,1751316640495,-318.0,0.00021863,2]
[368706877,1751316640504,-318.0,0.00021863,2]
[368706878,1751316640514,-318.0,0.00021863,2]
[368706879,1751316640524,-318.0,0.00021863,2]
[368706880,1751316640533,-318.0,0.00021863,2]
[368706881,1751316640542,-318.0,0.00021863,2]
[368706882,1751316640552,-318.0,0.00021863,2]
[368706883,1751316640562,-318.0,0.00021863,2]
[368706884,1751316640571,-318.0,0.00021863,2]
[368706885,1751316640581,-318.0,0.00021863,2]
[368706886,1751316640590,-318.0,0.00021863,2]
[368706887,1751316640599,-318.0,0.00021863,2]
[368706888,1751316640609,-318.0,0.00021863,2]
[368706889,1751316640618,-318.0,0.00021863,2]
[368706890,1751316640627,-318.0,0.00021863,2]
[368706891,1751316640637,-318.0,0.00021863,2]
[368706892,1751316640646,-318.0,0.00021863,2]
[368706893,1751316640656,-318.0,0.00021863,2]
[368706894,1751316640665,-318.0,0.00021863,2]
[368706895,1751316640675,-318.0,0.00021863,2]
[368706896,1751316640684,-318.0,0.00021863,2]
[368706897,1751316640693,-318.0,0.00021863,2]
[368706898,1751316640702,-318.0,0.00021863,2]
[368706899,1751316640711,-318.0,0.00021863,2]
[368706900,1751316640721,-318.0,0.00021863,2]
[368706901,1751316640730,-318.0,0.00021863,2]
[368706902,1751316640739,-318.0,0.00021863,2]
[368706903,1751316640748,-318.0,0.00021863,2]
[368706904,1751316640757,-318.0,0.00021863,2]
[368706905,1751316640768,-318.0,0.00021863,2]
[368706906,1751316640777,-318.0,0.00021863,2]
[368706907,1751316640786,-318.0,0.00021863,2]
[368706908,1751316640794,-318.0,0.00021863,2]
[368706909,1751316640804,-318.0,0.00021863,2]
[368706910,1751316640813,-318.0,0.00021863,2]
[368706911,1751316640822,-394.2605898,0.00021863,2]
[368706912,1751316640831,-151.0,0.00021899,2]
[368706913,1751316640841,-151.0,0.000219,3]
[368706914,1751316640850,-4944.99092163,0.000219,2]
[368706915,1751316640859,-1000.0,0.000219,2]
[368706916,1751316640868,-212.59306117,0.000219,2]
[368706917,1751316640878,-150.098384,0.000219,2]
[368706918,1751316640888,-500.0,0.00021917,2]
[368706919,1751316640898,-500.0,0.00021917,2]
[368706920,1751316640907,-500.0,0.00021917,2]
[368706921,1751316640917,-500.0,0.00021917,2]
[368706922,1751316640927,-500.0,0.00021917,2]
[368706923,1751316640936,-1317.7223025,0.00021918,7]
[368706924,1751316640945,-151.0,0.00021918,2]
[368706925,1751316640954,-151.0,0.00021918,2]
[368706926,1751316640964,-151.0,0.00021918,2]
[368706927,1751316640973,-151.0,0.00021918,2]
[368706928,1751316640983,-151.0,0.00021918,2]
[368706929,1751316640992,-151.0,0.00021918,2]
[368706930,1751316641002,-151.0,0.00021918,2]
[368706931,1751316641012,-151.0,0.00021918,2]
[368706932,1751316641023,-151.0,0.00021918,2]
[368706933,1751316641033,-151.0,0.00021918,2]
[368706934,1751316641042,-151.575893,0.00021918,2]
[368706935,1751316641052,-500.877378,0.00021918,2]
[368706936,1751316641061,-500.877378,0.00021918,2]
[368706937,1751316641070,-500.877378,0.00021918,2]
[368706938,1751316641080,-500.877378,0.00021918,2]
[368706939,1751316641089,-500.877378,0.00021918,2]
[368706940,1751316641099,-400.0,0.00021918,7]
[368706941,1751316641109,-151.0,0.00021918,2]
[368706942,1751316641118,-151.0,0.00021918,2]
[368706943,1751316641127,-151.0,0.00021918,2]
[368706944,1751316641137,-171.0,0.00021918,2]
[368706945,1751316641258,-151.0,0.00021918,2]
[368706946,1751316641268,-171.0,0.00021918,2]
[368706947,1751316641278,-171.0,0.00021918,2]
[368706948,1751316641288,-151.0,0.00021918,2]
[368706949,1751316641297,-272.83701376,0.00021918,2]
[368706950,1751316641306,-151.0,0.00021918,2]
[368706951,1751316641316,-151.0,0.00021918,2]
[368706952,1751316641326,-151.0,0.00021918,2]
[368706953,1751316641335,-151.0,0.00021918,2]
[368706954,1751316641345,-151.0,0.00021918,2]
[368706955,1751316641354,-151.0,0.00021918,2]
[368706956,1751316641363,-151.0,0.00021918,2]
[368706957,1751316641373,-151.0,0.00021918,2]
[368706958,1751316641383,-151.0,0.00021918,2]
[368706959,1751316641392,-151.0,0.00021918,2]
[368706960,1751316641402,-151.0,0.00021918,2]
[368706961,1751316641412,-151.0,0.00021918,2]
[368706962,1751316641425,-151.0,0.00021918,2]
[368706963,1751316641435,-151.0,0.00021918,2]
[368706964,1751316641444,-151.0,0.00021918,2]
[368706965,1751316641455,-151.0,0.00021918,2]
[368706966,1751316641466,-151.0,0.00021918,2]
[368706967,1751316641475,-151.0,0.00021918,2]
[368706968,1751316641485,-151.0,0.00021918,2]
[368706969,1751316641496,-151.0,0.00021918,2]
[368706970,1751316641506,-151.0,0.00021918,2]
[368706971,1751316641517,-156.21624187,0.00021918,2]
[368706972,1751316641527,-151.0,0.00021918,2]
[368706973,1751316641536,-151.0,0.00021918,2]
[368706974,1751316641546,-1142.47664435,0.00021918,2]
[368706975,1751316641555,-151.0,0.00021918,7]
[368706976,1751316641566,-151.0,0.00021918,7]
[368706977,1751316641575,-290.673608,0.00021918,7]
[368706978,1751316641585,-151.0,0.00021918,7]
[368706979,1751316641594,-151.0,0.00021926,2]
[368706980,1751316641604,-198.0,0.00021954,2]
[368706981,1751316641614,-664.0,0.00021961,2]
[368706982,1751316641623,-151.0,0.00021961,7]
[368706983,1751316641633,-193.596822,0.00021961,7]
[368706984,1751316641643,-563.0594462,0.00021969,6]
[368706985,1751316641652,-500.0,0.00021973,2]
[368706986,1751316641662,-500.0,0.00021973,2]
[368706987,1751316641671,-500.0,0.00021973,2]
[368706988,1751316641680,-500.79162839,0.00021973,2]
[368706989,1751316641690,-500.0,0.00021973,2]
[368706990,1751316641699,-500.0,0.00021973,2]
[368706991,1751316641708,-500.0,0.00021973,2]
[368706992,1751316641718,-500.0,0.00021973,2]
[368706993,1751316641727,-500.0,0.00021973,2]
[368706994,1751316641737,-500.0,0.00021973,2]
[368706995,1751316641746,-500.0,0.00021973,2]
[368706996,1751316641756,-198.29444739,0.00021973,2]
[368706997,1751316641766,-306.90086317,0.00021973,2]
[368706998,1751316641776,-500.0,0.00021973,2]
[368706999,1751316641790,-500.0,0.00021973,2]
[368707000,1751316641799,-210.22072563,0.00021973,2]
[368707001,1751316641809,-500.0,0.00021973,2]
[368707002,1751316641819,-500.0,0.00021973,2]
[368707003,1751316641828,-160.04675528,0.00021973,2]
[368707004,1751316641838,-500.0,0.00021973,2]
[368707005,1751316641847,-160.047979,0.00021973,2]
[368707006,1751316641857,-500.0,0.00021973,2]
[368707007,1751316641866,-500.0,0.00021973,2]
[368707008,1751316641876,-500.73152043,0.00021973,2]
[368707009,1751316641886,-500.0,0.00021973,2]
[368707010,1751316641895,-500.0,0.00021973,2]
[368707011,1751316641905,-500.0,0.00021973,2]
[368707012,1751316641915,-500.0,0.00021973,2]
[368707013,1751316641924,-500.0,0.00021973,2]
[368707014,1751316641936,-500.0,0.00021973,2]
[368707015,1751316641946,-500.0,0.00021973,2]
[368707016,1751316641955,-500.0,0.00021973,2]
[368707017,1751316641965,-564.16242984,0.00021973,2]
[368707018,1751316641974,-500.0,0.00021973,2]
[368707019,1751316641984,-500.0,0.00021973,2]
[368707020,1751316641993,-500.0,0.00021973,2]
[368707021,1751316642003,-500.0,0.00021973,2]
[368707022,1751316642012,-500.0,0.00021973,2]
[368707023,1751316642023,-500.0,0.00021973,2]
[368707024,1751316642033,-500.0,0.00021973,2]
[368707025,1751316642043,-500.0,0.00021973,2]
[368707026,1751316642053,-500.73388162,0.00021973,2]
[368707027,1751316642063,-600.0,0.00021973,2]
[368707028,1751316642072,-500.0,0.00021973,2]
[368707029,1751316642082,-500.0,0.00021973,2]
[368707030,1751316642092,-500.0,0.00021973,2]
[368707031,1751316642102,-500.0,0.00021973,2]
[368707032,1751316642111,-333.89584297,0.00021973,2]
[368707033,1751316642121,-500.0,0.00021973,2]
[368707034,1751316642130,-500.0,0.00021973,2]
[368707035,1751316642140,-500.0,0.00021973,2]
[368707036,1751316642150,-500.0,0.00021973,2]
[368707037,1751316642159,-151.0,0.00021973,7]
[368707038,1751316642169,-151.0,0.00021973,7]
[368707039,1751316642178,-151.0,0.00021973,7]
[368707040,1751316642188,-500.877378,0.00021973,7]
[368707041,1751316642197,-151.0,0.00021973,7]
[368707042,1751316642207,-484.415928,0.00021973,7]
[368707043,1751316642217,-484.415928,0.00021973,7]
[368707044,1751316642226,-151.0,0.00021973,7]
[368707045,1751316642235,-7377.31664678,0.00022,2]
[368707046,1751316642245,-86671.25587726,0.00022,2]
[368707047,1751316642254,-15354.52,0.00022,7]
[368707048,1751316642263,-108078.37,0.00022,7]
[368707049,1751316642274,-37863.91073517,0.00022,2]
[368707050,1751316642283,-310790.67267245,0.00022,5]
[368707051,1751316642293,-351.88205673,0.00022,2]
[368707052,1751316642302,-10792.93146828,0.00022,2]
[368707053,1751316642311,-10112.58430786,0.00022,2]
[368707054,1751316642320,-28517.67213961,0.00022,2]
[368707055,1751316642330,-161.44317001,0.00022,2]
[368707056,1751316642339,-1889.82,0.00022,7]
[368707057,1751316642349,-69244.5609971,0.00022,5]
[368707058,1751316642365,-4613.53284693,0.00022,5]
[368707059,1751316642640,-1421.22390603,0.00022,5]
[368707060,1751316642651,-499.75976203,0.00022,5]
[368707061,1751316642676,460.0,0.00019342,2]
[368707062,1751316642706,151.0,0.00019612,2]
[368707063,1751316642739,-151.0,0.00020158,2]
[368707064,1751316642748,-151.0,0.00020452,2]
[368707065,1751316642757,-151.0,0.00020982,2]
[368707066,1751316642767,-65877.13316462,0.00022,5]
[368707072,1751316643742,-33.81224485,0.00021699,2]
[368707073,1751316643754,-228.59205515,0.00021699,2]
[368707075,1751316643763,-59987.33515715,0.00022,5]
[368707077,1751316643773,-151.0,0.00022,7]
[368707078,1751316643782,-151.0,0.00022,7]
[368707079,1751316643792,-151.0,0.00022,7]
[368707080,1751316643801,-301.999999,0.00022,7]
[368707081,1751316643810,-151.0,0.00022,7]
[368707082,1751316643820,-151.0,0.00022,7]
[368707083,1751316643829,-151.0,0.00022,7]
[368707084,1751316643838,-151.0,0.00022,7]
[368707085,1751316643848,-151.0,0.00022,7]
[368707086,1751316643857,-151.0,0.00022,7]
[368707087,1751316643866,-151.0,0.00022,7]
[368707088,1751316643875,-151.0,0.00022,7]
[368707089,1751316643884,-151.0,0.00022,7]
[368707090,1751316643894,-151.0,0.00022,7]
[368707091,1751316643903,-151.0,0.00022,7]
[368707092,1751316643912,-178.329245,0.00022,7]
[368707093,1751316643922,-151.0,0.00022,7]
[368707094,1751316643931,-280.161103,0.00022,7]
[368707095,1751316643941,-151.0,0.00022,7]
[368707096,1751316643950,-151.0,0.00022,7]
[368707097,1751316643960,-151.0,0.00022,7]
[368707098,1751316643969,-151.0,0.00022,7]
[368707099,1751316643978,-500.877378,0.00022,7]
[368707100,1751316643988,-500.877378,0.00022,7]
[368707101,1751316643998,-500.877378,0.00022,7]
[368707102,1751316644008,-500.877378,0.00022,7]
[368707103,1751316644018,-500.877378,0.00022,7]
[368707104,1751316644027,-500.87737,0.00022,7]
[368707105,1751316644037,-295.135558,0.00022,7]
[368707106,1751316644046,-484.415928,0.00022,7]
[368707107,1751316644056,-484.415928,0.00022,7]
[368707108,1751316644066,-484.415928,0.00022,7]
[368707109,1751316644076,-484.415928,0.00022,7]
[368707110,1751316644085,-484.415928,0.00022,7]
[368707111,1751316644095,-484.415934,0.00022,7]
[368707112,1751316644105,-847.41730813,0.00022,7]
[368707113,1751316644115,-234.391902,0.00022,7]
[368707114,1751316644124,-160.0,0.00022,7]
[368707115,1751316644134,-213.84631524,0.00022,7]
[368707116,1751316644143,-151.0,0.00022,7]
[368707117,1751316644153,-151.0,0.00022,7]
[368707118,1751316644163,-151.0,0.00022,7]
[368707119,1751316644172,-460.0,0.00022076,2]
[368707120,1751316644182,-314.32,0.00022076,2]
[368707121,1751316644191,-632.64,0.00022078,2]
[368707122,1751316644201,-183.82652816,0.0002213,2]
[368707123,1751316644319,-563.0594462,0.00022141,6]
[368707124,1751316644329,-153.0,0.00022153,2]
[368707125,1751316644338,-153.0,0.00022153,2]
[368707126,1751316644347,-153.0,0.00022153,2]
[368707127,1751316644357,-153.0,0.00022153,2]
[368707128,1751316644367,-153.0,0.00022153,2]
[368707129,1751316644376,-153.0,0.00022153,2]
[368707130,1751316644385,-153.0,0.00022153,2]
[368707131,1751316644395,-153.0,0.00022153,2]
[368707132,1751316644404,-153.0,0.00022153,2]
[368707133,1751316644416,-153.0,0.00022153,2]
[368707134,1751316644427,-153.0,0.00022153,2]
[368707135,1751316644436,-153.0,0.00022153,2]
[368707136,1751316644446,-153.0,0.00022153,2]
[368707137,1751316644455,-153.0,0.00022153,2]
[368707138,1751316644465,-153.0,0.00022153,2]
[368707139,1751316644474,-153.0,0.00022153,2]
[368707140,1751316644483,-153.0,0.00022153,2]